lending/lending_fUSD_20251125
["ID","MTS","AMOUNT","RATE_DAILY","PERIOD"]
[394893730,1764087041415,-500.0,0.00016598,2]
[394893731,1764087041425,-500.0,0.00016598,2]
[394893732,1764087041434,-500.0,0.00016598,2]
[394893733,1764087041444,-500.0,0.00016598,2]
[394893734,1764087041453,-500.0,0.00016598,2]
[394893735,1764087041463,-500.0,0.00016598,2]
[394893736,1764087041473,-500.0,0.00016598,2]
[394893737,1764087041482,-500.0,0.00016598,2]
[394893738,1764087041505,-341.72100394,0.00016599,2]
[394893739,1764087041519,-18981.24565527,0.00016599,2]
[394893740,1764087041530,-11482.20415916,0.00016599,2]
[394893741,1764087041540,-851.65605322,0.00016599,2]
[394893742,1764087041551,-150.0,0.00016615,2]
[394893743,1764087041561,-150.0,0.0001665,2]
[394893744,1764087041571,-150.0,0.0001665,2]
[394893745,1764087041581,-500.0,0.00016673,2]
[394893746,1764087041591,-500.0,0.00016673,2]
[394893747,1764087041602,-500.0,0.00016673,2]
[394893748,1764087041612,-154.81537229,0.00016673,2]
[394893749,1764087041622,-500.0,0.00016673,2]
[394893750,1764087041632,-500.0,0.00016687,2]
[394893751,1764087041641,-151.0,0.00016692,2]
[394893752,1764087041651,-301.12631689,0.00016696,2]
[394893753,1764087041660,-500.0,0.00016696,2]
[394893754,1764087041670,-500.0,0.00016696,2]
[394893755,1764087041680,-500.0,0.00016696,2]
[394893756,1764087041690,-500.0,0.00016696,2]
[394893757,1764087041699,-274.87615112,0.00016696,2]
[394893758,1764087041709,-534.46958976,0.00016696,2]
[394893759,1764087041719,-250.0,0.00016696,2]
[394893760,1764087041728,-250.0,0.00016696,2]
[394893761,1764087041738,-250.0,0.00016696,2]
[394893762,1764087041748,-300.0,0.00016696,2]
[394893763,1764087041758,-300.0,0.00016696,2]
[394893764,1764087041768,-300.0,0.00016696,2]
[394893765,1764087041778,-195.0,0.00016696,2]
[394893766,1764087041789,-300.0,0.00016696,2]
[394893767,1764087041798,-150.16278112,0.00016696,2]
[394893768,1764087041808,-447.64676041,0.00016696,2]
[394893769,1764087041818,-495199.4357,0.00016697,2]
[394893770,1764087041828,-920.3746,0.00016699,2]
[394893771,1764087041838,-1000.0,0.000167,2]
[394893772,1764087041847,-4865.76036366,0.000167,2]
[394893794,1764087045633,-352.21466962,0.000167,2]
[394893800,1764087048698,-11059.57547606,0.000167,2]
[394893802,1764087086457,-500.0,0.00015078,2]
[394893881,1764087410652,-6854.84665999,0.00015087,2]
[394893882,1764087410744,-4936.82586401,0.00015087,2]
[394893925,1764087503658,158.99,7.906e-05,2]
[394893926,1764087503890,158.99,9.035e-05,2]
[394893927,1764087504109,158.99,0.00010165,2]
[394893928,1764087504391,158.99,0.00011294,2]
[394893929,1764087504618,158.99,0.00012424,2]
[394893931,1764087504839,158.99,0.00013553,2]
[394893932,1764087505070,158.99,0.00014683,2]
[394894009,1764087826744,-250.0,0.00015163,2]
[394894010,1764087826788,-195.0,0.00015163,2]
[394894011,1764087826821,-195.0,0.00015164,2]
[394894012,1764087827139,-250.0,0.000152,2]
[394894013,1764087827171,-156.4397471,0.00015297,2]
[394894014,1764087827208,-300.0,0.00015396,2]
[394894016,1764087827241,-300.0,0.00015397,2]
[394894017,1764087827272,-1200.0,0.00015397,2]
[394894018,1764087827303,-1200.0,0.00015397,2]
[394894019,1764087827336,-300.0,0.00015397,2]
[394894020,1764087827612,-2028.93,0.00015398,2]
[394894021,1764087827883,-5942.15,0.00015398,2]
[394894022,1764087827896,-210.6907587,0.00015398,2]
[394894023,1764087832910,-4.0092413,0.00015398,2]
[394894024,1764087832942,-4942.19,0.00015398,2]
[394894025,1764087832985,-872.61,0.00015699,2]
[394894026,1764087833016,-300.0,0.00015699,2]
[394894027,1764087833048,-2119.744,0.00015699,2]
[394894028,1764087833079,-184.008,0.00015699,2]
[394894029,1764087833249,-107.6115174,0.00015699,2]
[394894030,1764087833266,-3047.286,0.00015699,2]
[394894031,1764087835913,-3154.9175174,0.00015699,2]
[394894032,1764087835940,-3690.1749652,0.00015699,2]
[394894033,1764087836034,-422.44,0.00015699,2]
[394894034,1764087836065,-999.99,0.00015699,2]
[394894035,1764087836095,-299.99,0.00015699,2]
[394894036,1764087836161,-6555.17,0.00015699,2]
[394894050,1764087946376,355.42,0.00013699,2]
[394894056,1764088032670,205.0,9.8e-05,2]
[394894057,1764088036644,258.32194055,0.000101,2]
[394894062,1764088109641,2718.66839853,0.0001,2]
[394894065,1764088120056,6462.59966092,0.0001,2]
[394894066,1764088120082,10000.01,0.0001,2]
[394894067,1764088120112,822.40176135,0.0001,2]
[394894068,1764088120892,-1318.1779349,0.00015,4]
[394894069,1764088120920,-1200.0,0.00015155,2]
[394894070,1764088120946,-1336.38330558,0.00015156,2]
[394894072,1764088126148,-13814.43325256,0.00015156,2]
[394894082,1764088231587,-584.192003,0.00014855,2]
[394894083,1764088231598,-150.0,0.0001493,2]
[394894085,1764088231608,-1500.0,0.00014947,2]
[394894086,1764088231618,-195.0,0.00015024,2]
[394894089,1764088231628,-250.0,0.00015118,2]
[394894093,1764088231638,-300.0,0.00015155,2]
[394894096,1764088231648,-300.0,0.00015155,2]
[394894099,1764088231658,-3412.00799698,0.00015156,2]
[394894101,1764088231670,-250.255,0.00015156,2]
[394894104,1764088231713,-11816.51044488,0.00015156,2]
[394894105,1764088231723,-1017.2224,0.00015296,2]
[394894106,1764088231733,-873.80940273,0.00015499,2]
[394894107,1764088231743,-761.40318507,0.00015572,2]
[394894108,1764088231753,-151.0,0.00015596,2]
[394894109,1764088231763,-300.0,0.00015598,2]
[394894110,1764088231772,-270.70471536,0.00015599,2]
[394894117,1764088237555,-317.39188556,0.00015598,2]
[394894119,1764088237568,-168.09748248,0.00015598,2]
[394894120,1764088237579,-500.0,0.00015598,2]
[394894121,1764088237588,-500.0,0.00015598,2]
[394894122,1764088237598,-500.0,0.00015598,2]
[394894123,1764088237607,-500.0,0.00015598,2]
[394894124,1764088237617,-500.0,0.00015598,2]
[394894125,1764088237627,-361.69586921,0.00015598,2]
[394894126,1764088237637,-333.92574361,0.00015598,2]
[394894127,1764088237654,-500.0,0.00015598,2]
[394894128,1764088237667,-442.46518627,0.00015598,2]
[394894129,1764088237682,-500.0,0.00015598,2]
[394894130,1764088237697,-500.0,0.00015598,2]
[394894131,1764088237711,-500.0,0.00015598,2]
[394894132,1764088237725,-500.0,0.00015598,2]
[394894133,1764088237738,-500.0,0.00015598,2]
[394894134,1764088237748,-500.0,0.00015598,2]
[394894135,1764088237760,-500.0,0.00015598,2]
[394894136,1764088237771,-500.0,0.00015598,2]
[394894137,1764088237784,-500.0,0.00015598,2]
[394894138,1764088237797,-111.00654993,0.00015598,2]
[394894139,1764088237812,-388.99345007,0.00015598,2]
[394894140,1764088237824,-500.0,0.00015598,2]
[394894141,1764088237836,-500.0,0.00015598,2]
[394894142,1764088237848,-500.0,0.00015598,2]
[394894143,1764088237861,-500.0,0.00015598,2]
[394894144,1764088237874,-500.0,0.00015598,2]
[394894145,1764088237890,-500.0,0.00015598,2]
[394894146,1764088237903,-500.0,0.00015598,2]
[394894147,1764088237916,-500.0,0.00015598,2]
[394894148,1764088237929,-500.0,0.00015598,2]
[394894149,1764088237941,-500.0,0.00015598,2]
[394894150,1764088237955,-500.0,0.00015598,2]
[394894151,1764088237966,-500.0,0.00015598,2]
[394894152,1764088237977,-500.0,0.00015598,2]
[394894153,1764088237987,-500.0,0.00015598,2]
[394894154,1764088237999,-500.0,0.00015598,2]
[394894155,1764088238011,-500.0,0.00015598,2]
[394894156,1764088238023,-327.28046858,0.00015598,2]
[394894157,1764088238039,-172.71953142,0.00015598,2]
[394894158,1764088238053,-500.0,0.00015598,2]
[394894159,1764088238065,-500.0,0.00015598,2]
[394894160,1764088238077,-500.0,0.00015598,2]
[394894161,1764088238090,-500.0,0.00015598,2]
[394894162,1764088238102,-500.0,0.00015598,2]
[394894163,1764088238115,-500.0,0.00015598,2]
[394894164,1764088238127,-207.08046858,0.00015599,2]
[394894165,1764088238143,-3760.29601606,0.00015599,2]
[394894166,1764088238155,-30570.76477252,0.00015599,2]
[394894173,1764088239730,-500.0,0.00015598,2]
[394894175,1764088239742,-449.309992,0.00015599,2]
[394894178,1764088239756,-322.21162407,0.00015599,2]
[394894179,1764088239773,-4480.8035198,0.00015599,2]
[394894183,1764088239899,-1.7e-07,0.00015599,2]
[394894184,1764088239914,-505439.33509144,0.00015599,2]
[394894185,1764088239928,-500.0,0.00015673,2]
[394894186,1764088239939,-500.0,0.00015673,2]
[394894187,1764088239952,-159.96289996,0.00015673,2]
[394894188,1764088239966,-500.0,0.00015673,2]
[394894189,1764088239978,-500.0,0.00015673,2]
[394894190,1764088239991,-500.0,0.00015673,2]
[394894191,1764088240003,-151.0,0.00015696,2]
[394894192,1764088240015,-34102.0491,0.00015699,2]
[394894193,1764088240027,-3270.34,0.00015699,2]
[394894194,1764088240038,-1777.46,0.00015699,2]
[394894195,1764088240050,-8447.13,0.00015699,2]
[394894196,1764088240060,-150.99,0.00015699,2]
[394894197,1764088240070,-38451.89,0.00015699,2]
[394894198,1764088240081,-9999.99,0.00015699,2]
[394894199,1764088240091,-2207.03,0.00015699,2]
[394894200,1764088240103,-499.99,0.00015699,2]
[394894201,1764088240118,-225.21969723,0.000157,2]
[394894202,1764088240132,-11872.85671618,0.00015712,2]
[394894203,1764088240143,-21810.48989791,0.00015712,2]
[394894204,1764088240154,-500.0,0.00015773,2]
[394894205,1764088240164,-500.0,0.00015773,2]
[394894206,1764088240175,-501.2352915,0.00015773,2]
[394894207,1764088240186,-465.35271427,0.00015773,2]
[394894208,1764088240196,-500.0,0.00015773,2]
[394894209,1764088240206,-502.26767728,0.00015773,2]
[394894210,1764088240218,-500.0,0.00015773,2]
[394894211,1764088240229,-500.0,0.00015773,2]
[394894212,1764088240241,-329.42173568,0.00015773,2]
[394894213,1764088240254,-500.84199848,0.00015773,2]
[394894214,1764088240266,-501.1616991,0.00015773,2]
[394894215,1764088240278,-500.0,0.00015773,2]
[394894216,1764088240289,-504.9809457,0.00015773,2]
[394894217,1764088240301,-500.0,0.00015773,2]
[394894218,1764088240312,-500.0,0.00015773,2]
[394894219,1764088240324,-500.39644421,0.00015773,2]
[394894220,1764088240335,-501.18613092,0.00015773,2]
[394894221,1764088240346,-505.63464546,0.00015773,2]
[394894222,1764088240357,-500.0,0.00015773,2]
[394894223,1764088240368,-500.98676918,0.00015773,2]
[394894224,1764088240381,-500.0,0.00015773,2]
[394894225,1764088240392,-500.0,0.00015773,2]
[394894226,1764088240404,-292.19615644,0.00015773,2]
[394894227,1764088240416,-501.27256296,0.00015773,2]
[394894228,1764088240427,-500.0,0.00015773,2]
[394894229,1764088240439,-500.0,0.00015773,2]
[394894230,1764088240451,-501.05731046,0.00015773,2]
[394894231,1764088240462,-500.0,0.00015773,2]
[394894232,1764088240473,-500.0,0.00015773,2]
[394894233,1764088240483,-151.0,0.00015787,2]
[394894234,1764088240494,-151.0,0.00015791,2]
[394894235,1764088240505,-500.0,0.00015791,2]
[394894236,1764088240516,-768.05,0.00015797,2]
[394894237,1764088240527,-500.0,0.00015799,2]
[394894238,1764088240539,-586.22946325,0.00015799,2]
[394894239,1764088240553,-150.0,0.00015799,2]
[394894240,1764088240564,-150.0,0.00015799,2]
[394894241,1764088240575,-150.0,0.00015799,2]
[394894242,1764088240585,-150.0,0.00015799,2]
[394894243,1764088240597,-150.0,0.00015799,2]
[394894244,1764088240608,-150.0,0.00015799,2]
[394894245,1764088240619,-151.91393352,0.00015799,2]
[394894246,1764088240631,-150.43577456,0.00015799,2]
[394894248,1764088240642,-150.0,0.00015799,2]
[394894249,1764088240654,-150.0,0.00015799,2]
[394894250,1764088240665,-1173.78,0.00015799,2]
[394894251,1764088240676,-500.0,0.00015799,2]
[394894252,1764088240687,-500.0,0.00015799,2]
[394894253,1764088240698,-500.0,0.00015799,2]
[394894254,1764088240710,-501.36526993,0.00015799,2]
[394894255,1764088240721,-647.2888879,0.00015799,2]
[394894256,1764088240732,-500.0,0.00015799,2]
[394894257,1764088240743,-500.0,0.00015799,2]
[394894258,1764088240754,-500.0,0.00015799,2]
[394894259,1764088240765,-223.63639859,0.00015799,2]
[394894260,1764088240776,-152.93953339,0.00015799,2]
[394894261,1764088240787,-150.0,0.00015799,2]
[394894262,1764088240800,-500.0,0.00015799,2]
[394894263,1764088240811,-150.0,0.00015799,2]
[394894264,1764088240822,-500.0,0.00015799,2]
[394894265,1764088240834,-500.0,0.00015799,2]
[394894266,1764088240845,-150.0,0.00015799,2]
[394894267,1764088240857,-150.0,0.00015799,2]
[394894268,1764088240870,-151.10119683,0.00015799,2]
[394894269,1764088240883,-150.0,0.00015799,2]
[394894270,1764088240894,-500.0,0.00015799,2]
[394894271,1764088240905,-245.75646741,0.00015799,2]
[394894273,1764088240919,-428.02188527,0.00015799,2]
[394894274,1764088240930,-500.0,0.00015799,2]
[394894275,1764088240942,-150.0,0.00015799,2]
[394894276,1764088240954,-150.0,0.00015799,2]
[394894277,1764088240965,-155.05114521,0.00015799,2]
[394894278,1764088240976,-150.0,0.00015799,2]
[394894279,1764088240987,-150.0,0.00015799,2]
[394894280,1764088240999,-500.0,0.00015799,2]
[394894281,1764088241010,-150.0,0.00015799,2]
[394894282,1764088241021,-150.0,0.00015799,2]
[394894283,1764088241032,-500.0,0.00015799,2]
[394894284,1764088241044,-500.0,0.00015799,2]
[394894285,1764088241055,-500.0,0.00015799,2]
[394894286,1764088241066,-419.62809786,0.00015799,2]
[394894287,1764088241077,-151.06662226,0.00015799,2]
[394894288,1764088241088,-150.0,0.00015799,2]
[394894289,1764088241099,-500.0,0.00015799,2]
[394894290,1764088241111,-500.0,0.00015799,2]
[394894291,1764088241125,-500.0,0.00015799,2]
[394894292,1764088241136,-500.0,0.00015799,2]
[394894293,1764088241147,-152.77170243,0.00015799,2]
[394894294,1764088241158,-500.0,0.00015799,2]
[394894295,1764088241169,-153.119757,0.000158,2]
[394894296,1764088241181,-151.0,0.000158,2]
[394894297,1764088241193,-158.99,0.00015812,2]
[394894298,1764088241204,-305.84840115,0.000159,2]
[394894299,1764088241225,-14.45033895,0.000159,2]
[394894300,1764088241237,-208.7124507,0.00015936,2]
[394894301,1764088241249,-150.0,0.00015936,2]
[394894302,1764088241261,-500.0,0.00015936,2]
[394894303,1764088241273,-150.0,0.00015936,2]
[394894304,1764088241285,-150.0,0.00015936,2]
[394894305,1764088241297,-150.0,0.00015936,2]
[394894306,1764088241308,-500.0,0.00015936,2]
[394894307,1764088241318,-500.0,0.00015936,2]
[394894308,1764088241565,-200.0,0.00015936,2]
[394894309,1764088241576,-500.0,0.00015936,2]
[394894310,1764088241587,-500.0,0.00015936,2]
[394894311,1764088241598,-500.0,0.00015936,2]
[394894312,1764088241609,-150.0,0.00015936,2]
[394894313,1764088241619,-526.44152871,0.00015936,2]
[394894314,1764088241629,-500.0,0.00015936,2]
[394894315,1764088241640,-500.0,0.00015936,2]
[394894316,1764088241649,-500.0,0.00015936,2]
[394894317,1764088241659,-115.74112914,0.00015936,2]
[394894318,1764088241672,-384.25887086,0.00015936,2]
[394894319,1764088241682,-167.73,0.0001605,2]
[394894320,1764088241692,-207.71038414,0.00016073,2]
[394894321,1764088241702,-500.0,0.00016073,2]
[394894322,1764088241712,-150.0,0.00016073,2]
[394894323,1764088241722,-150.0,0.00016073,2]
[394894324,1764088241731,-150.0,0.00016073,2]
[394894325,1764088241741,-500.0,0.00016073,2]
[394894326,1764088241750,-318.09228248,0.00016073,2]
[394894327,1764088241760,-500.0,0.00016073,2]
[394894328,1764088241771,-500.0,0.00016073,2]
[394894329,1764088241780,-500.0,0.00016073,2]
[394894330,1764088241790,-168.95413463,0.00016073,2]
[394894331,1764088241802,-500.0,0.00016073,2]
[394894332,1764088241812,-500.0,0.00016073,2]
[394894333,1764088241822,-500.0,0.00016073,2]
[394894334,1764088241832,-500.0,0.00016073,2]
[394894335,1764088241842,-1173.78,0.00016073,2]
[394894336,1764088241852,-150.0,0.000162,2]
[394894337,1764088241861,-150.0,0.000162,2]
[394894338,1764088241871,-150.0,0.000162,2]
[394894339,1764088241884,-150.0,0.000162,2]
[394894340,1764088241893,-150.0,0.000162,2]
[394894341,1764088241903,-150.0,0.000162,2]
[394894342,1764088241913,-156.9199235,0.000162,2]
[394894343,1764088241922,-159.77049425,0.000162,2]
[394894344,1764088241932,-150.0,0.000162,2]
[394894345,1764088241941,-150.0,0.000162,2]
[394894346,1764088241953,-1070.47391014,0.000162,5]
[394894347,1764088241965,-298.51436949,0.000162,5]
[394894348,1764088241976,-3631.01503088,0.000162,5]
[394894349,1764088241985,-172.829157,0.000162,2]
[394894350,1764088241995,-151.0,0.000162,2]
[394894351,1764088242004,-151.0,0.000162,2]
[394894352,1764088242014,-283.16679676,0.0001621,2]
[394894353,1764088242024,-205.90777453,0.0001621,2]
[394894354,1764088242033,-264.01132078,0.0001621,2]
[394894355,1764088242042,-50.6133939,0.0001621,2]
[394894356,1764088242054,-100.1742399,0.0001621,2]
[394894357,1764088242064,-242.0327601,0.0001621,2]
[394894358,1764088242080,-257.9672399,0.0001621,2]
[394894359,1764088242089,-119.61418892,0.0001621,2]
[394894360,1764088242101,-380.38581108,0.0001621,2]
[394894362,1764088242110,-500.0,0.0001621,2]
[394894363,1764088242120,-500.0,0.0001621,2]
[394894364,1764088242130,-47.11696902,0.0001621,2]
[394894380,1764088243771,-81.12644847,0.0001621,2]
[394894381,1764088245160,-161.96479256,0.0001621,2]
[394894382,1764088245170,-500.0,0.0001621,2]
[394894383,1764088245180,-101.94873541,0.0001621,2]
[394894384,1764088245193,-398.05126459,0.0001621,2]
[394894385,1764088245202,-366.0,0.0001621,2]
[394894386,1764088245212,-217.92964583,0.00016219,2]
[394894387,1764088245222,-1000.0,0.00016221,2]
[394894388,1764088245232,-1414.92524019,0.00016235,2]
[394894389,1764088245241,-1000.0,0.00016321,2]
[394894390,1764088245251,-1110.69678692,0.00016321,2]
[394894391,1764088245265,-502.30829307,0.00016321,2]
[394894392,1764088245275,-1000.0,0.00016321,2]
[394894393,1764088245284,-1000.0,0.00016321,2]
[394894394,1764088245294,-150.0,0.00016329,2]
[394894395,1764088245304,-500.0,0.00016339,2]
[394894396,1764088245313,-300.0,0.0001634,2]
[394894397,1764088245323,-285.49751367,0.00016347,2]
[394894398,1764088245332,-500.0,0.00016347,2]
[394894399,1764088245341,-500.0,0.00016347,2]
[394894400,1764088245350,-500.0,0.00016347,2]
[394894401,1764088245360,-500.0,0.00016347,2]
[394894402,1764088245370,-500.0,0.00016347,2]
[394894403,1764088245380,-1173.78,0.00016347,2]
[394894404,1764088245390,-150.0,0.00016364,2]
[394894405,1764088245400,-150.0,0.000164,2]
[394894406,1764088245409,-150.0,0.000164,2]
[394894407,1764088245419,-301.82596373,0.00016423,2]
[394894408,1764088245430,-195.0,0.00016423,2]
[394894409,1764088245440,-150.0,0.00016438,2]
[394894410,1764088245450,-150.0,0.00016438,2]
[394894411,1764088245460,-150.0,0.00016457,2]
[394894412,1764088245470,-150.0,0.00016457,2]
[394894413,1764088245480,-500.0,0.00016473,2]
[394894414,1764088245489,-161.84092401,0.00016473,2]
[394894416,1764088245499,-349.45107206,0.00016473,2]
[394894417,1764088245509,-500.0,0.00016484,2]
[394894418,1764088245518,-500.0,0.00016484,2]
[394894419,1764088245528,-500.0,0.00016484,2]
[394894421,1764088245538,-150.0,0.00016484,2]
[394894422,1764088245547,-604.0,0.00016484,2]
[394894423,1764088245556,-1194.61270275,0.00016486,2]
[394894424,1764088245566,-150.0,0.000165,2]
[394894425,1764088245575,-150.0,0.00016527,2]
[394894426,1764088245585,-2314.80225,0.0001653,2]
[394894427,1764088245594,-680.1040566,0.0001654,2]
[394894429,1764088245604,-205.99900952,0.00016575,2]
[394894430,1764088245614,-5442.6603095,0.00016584,2]
[394894431,1764088245624,-1087.0,0.00016584,2]
[394894432,1764088245638,-420.0,0.00016584,2]
[394894434,1764088245648,-420.0,0.00016584,2]
[394894436,1764088245658,-150.0,0.00016586,2]
[394894437,1764088245670,-250.0,0.00016587,2]
[394894438,1764088245680,-195.0,0.00016587,2]
[394894439,1764088245690,-300.0,0.00016588,2]
[394894440,1764088245700,-195.0,0.00016588,2]
[394894441,1764088245710,-250.0,0.00016588,2]
[394894442,1764088245720,-1000.0,0.00016596,2]
[394894443,1764088245731,-150.0,0.000166,2]
[394894444,1764088245740,-150.0,0.000166,2]
[394894445,1764088245751,-500.0,0.00016621,2]
[394894446,1764088245760,-500.0,0.00016621,2]
[394894447,1764088245770,-1173.78,0.00016621,2]
[394894448,1764088245780,-200.0,0.00016665,2]
[394894449,1764088245790,-200.0,0.00016666,2]
[394894450,1764088245800,-500.0,0.00016683,2]
[394894451,1764088245809,-152.9510882,0.00016683,2]
[394894452,1764088245819,-151.0,0.00016686,2]
[394894453,1764088245830,-307.16413271,0.00016688,2]
[394894454,1764088245840,-24708.8931052,0.00016689,2]
[394894455,1764088245850,-3522.37969,0.00016689,2]
[394894456,1764088245860,-140163.4559122,0.00016689,2]
[394894457,1764088245869,-166.133116,0.00016689,2]
[394894458,1764088245882,-151.0,0.00016689,2]
[394894459,1764088245893,-151.0,0.00016689,2]
[394894460,1764088245903,-151.0,0.00016689,2]
[394894461,1764088245912,-151.0,0.00016689,2]
[394894462,1764088245923,-151.0,0.00016689,2]
[394894463,1764088245933,-150.0,0.00016691,2]
[394894464,1764088245945,-1194.61270273,0.00016693,2]
[394894465,1764088245956,-1000.0,0.00016697,2]
[394894466,1764088245966,-1000.0,0.00016697,2]
[394894467,1764088245975,-637.72604925,0.000167,2]
[394894468,1764088245988,-608.56136081,0.000167,2]
[394894469,1764088245998,-200.0,0.000167,2]
[394894470,1764088246012,-150.0,0.00016714,2]
[394894471,1764088246022,-150.0,0.00016714,2]
[394894472,1764088246032,-230.0,0.00016721,2]
[394894473,1764088246044,-150.16278112,0.00016741,2]
[394894474,1764088246055,-300.0,0.00016741,2]
[394894475,1764088246065,-300.0,0.00016741,2]
[394894476,1764088246075,-300.0,0.00016741,2]
[394894477,1764088246084,-447.64676041,0.00016741,2]
[394894478,1764088246094,-250.0,0.00016758,2]
[394894479,1764088246104,-500.0,0.00016758,2]
[394894480,1764088246115,-166.66,0.00016776,2]
[394894481,1764088246125,-500.0,0.00016797,2]
[394894482,1764088246135,-500.0,0.00016797,2]
[394894483,1764088246145,-380.33370837,0.00016798,2]
[394894484,1764088246154,-231.47564842,0.00016798,2]
[394894485,1764088246164,-150.0,0.000168,2]
[394894486,1764088246174,-150.0,0.000168,2]
[394894487,1764088246184,-150.0,0.000168,2]
[394894488,1764088246195,-150.0,0.000168,2]
[394894489,1764088246205,-150.0,0.000168,2]
[394894490,1764088246215,-150.0,0.00016843,2]
[394894491,1764088246224,-150.0,0.00016855,2]
[394894492,1764088246234,-200.0,0.00016867,2]
[394894493,1764088246244,-1500.0,0.00016868,2]
[394894494,1764088246253,-1500.0,0.00016868,2]
[394894495,1764088246263,-1392.08343285,0.00016868,2]
[394894496,1764088246273,-500.0,0.00016895,2]
[394894497,1764088246283,-1173.78,0.00016895,2]
[394894498,1764088246293,-168.75138972,0.000169,2]
[394894499,1764088246304,-1194.61270273,0.000169,2]
[394894500,1764088246314,-300.0,0.0001692,2]
[394894501,1764088246323,-150.0,0.00016971,2]
[394894502,1764088246333,-150.0,0.00016971,2]
[394894503,1764088246343,-175.91455884,0.00016973,2]
[394894504,1764088246353,-231.63969334,0.00016973,2]
[394894505,1764088246366,-500.0,0.00016973,2]
[394894506,1764088246376,-507.05784267,0.00016973,2]
[394894507,1764088246386,-500.0,0.00016973,2]
[394894508,1764088246396,-15631.02808542,0.00016986,2]
[394894509,1764088246408,-11352.78191458,0.00016986,2]
[394894510,1764088246419,-748.61246836,0.0001699,2]
[394894511,1764088246429,-500.0,0.00016999,2]
[394894512,1764088246439,-500.0,0.00016999,2]
[394894513,1764088246449,-291.27618921,0.00016999,2]
[394894514,1764088246459,-150.0,0.00017,2]
[394894515,1764088246468,-150.0,0.00017,2]
[394894516,1764088246478,-280220.15766818,0.00017,2]
[394894518,1764088246636,-650.89714125,0.00017,2]
[394894520,1764088246647,-349.07562742,0.00017,2]
[394894521,1764088246890,-391.32314559,0.00015573,2]
[394894522,1764088246900,-26645.30362327,0.00017,2]
[394894523,1764088246911,-31589.07489214,0.00017,2]
[394894574,1764088507421,211.0,0.00022,30]
[394894575,1764088507712,211.0,0.00022,30]
[394894578,1764088508666,160.0,0.00022,30]
[394894579,1764088509464,157.0,0.00022,30]
[394894580,1764088509530,157.0,0.00022,30]
[394894581,1764088509740,157.0,0.00022,30]
[394894613,1764088837096,338.20815479,0.00025,120]
[394894645,1764089005401,2141.49,0.00025,120]
[394894646,1764089312877,166.66,0.0001411,2]
[394894647,1764089313072,166.66,0.00014407,2]
[394894653,1764089425357,200.0,0.00014631,2]
[394894687,1764089431871,-166.66,0.00014704,2]
[394894688,1764089431882,-250.0,0.00014853,2]
[394894689,1764089431891,-166.66,0.00015001,2]
[394894690,1764089431901,-266.4902529,0.00015107,2]
[394894691,1764089431911,-200.0,0.0001527,2]
[394894692,1764089431921,-160.13949654,0.0001527,2]
[394894693,1764089431932,-151.0,0.00015296,2]
[394894694,1764089431942,-151.0,0.00015296,2]
[394894695,1764089431952,-225.21969723,0.00015298,2]
[394894696,1764089431961,-300.0,0.00015298,2]
[394894697,1764089431971,-963.98678121,0.00015298,2]